[Event "Titled Tuesday Blitz November 14 Early 2023"]
[White "Petkov, Momchil"]
[Black "Gurel, Ediz"]
[WhiteFideId "2921642"]
[BlackFideId "44507356"]
[WhiteElo "2764"]
[BlackElo "2938"]
[Result "0-1"]
[Round "9"]
[TimeControl "180+1"]
[Date "2023.11.14"]
[WhiteClock "0:00:05"]
[BlackClock "0:00:18"]
[Board "18"]

1. d4 {[%clk 0:03:00]}  Nf6 {[%clk 0:02:57]} 2. Nf3 {[%clk 0:03:01]}  e6 {[%clk 0:02:57]} 3. Bf4 {[%clk 0:03:01]}  c5 {[%clk 0:02:56]} 4. e3 {[%clk 0:03:02]}  b6 {[%clk 0:02:55]} 5. Nc3 {[%clk 0:02:58]}  a6 {[%clk 0:02:48]} 6. e4 {[%clk 0:02:53]}  cxd4 {[%clk 0:02:45]} 7. Qxd4 {[%clk 0:02:54]}  Nc6 {[%clk 0:02:43]} 8. Qd2 {[%clk 0:02:52]}  Bb4 {[%clk 0:02:41]} 9. Bd3 {[%clk 0:02:51]}  d5 {[%clk 0:02:39]} 10. e5 {[%clk 0:02:38]}  d4 {[%clk 0:01:53]} 11. exf6 {[%clk 0:02:21]}  dxc3 {[%clk 0:01:53]} 12. bxc3 {[%clk 0:02:00]}  Qxf6 {[%clk 0:01:53]} 13. O-O {[%clk 0:00:44]}  Bxc3 {[%clk 0:01:52]} 14. Bg5 {[%clk 0:00:42]}  Bxd2 {[%clk 0:01:50]} 15. Bxf6 {[%clk 0:00:42]}  gxf6 {[%clk 0:01:51]} 16. Nxd2 {[%clk 0:00:42]}  Ne5 {[%clk 0:01:45]} 17. Be4 {[%clk 0:00:40]}  Rb8 {[%clk 0:01:43]} 18. f4 {[%clk 0:00:40]}  Nd7 {[%clk 0:01:43]} 19. Nc4 {[%clk 0:00:38]}  Ke7 {[%clk 0:01:36]} 20. Rab1 {[%clk 0:00:33]}  Bb7 {[%clk 0:01:27]} 21. Bxb7 {[%clk 0:00:25]}  Rxb7 {[%clk 0:01:28]} 22. Rfd1 {[%clk 0:00:24]}  b5 {[%clk 0:01:18]} 23. Ne3 {[%clk 0:00:21]}  Rc7 {[%clk 0:01:15]} 24. Rd4 {[%clk 0:00:20]}  Nb6 {[%clk 0:01:05]} 25. Rbd1 {[%clk 0:00:19]}  Rhc8 {[%clk 0:01:01]} 26. f5 {[%clk 0:00:20]}  Rc6 {[%clk 0:00:41]} 27. Rh4 {[%clk 0:00:19]}  Rc3 {[%clk 0:00:38]} 28. Re1 {[%clk 0:00:18]}  e5 {[%clk 0:00:31]} 29. Rxh7 {[%clk 0:00:17]}  Ra3 {[%clk 0:00:31]} 30. Ng4 {[%clk 0:00:13]}  Rxc2 {[%clk 0:00:25]} 31. Nh6 {[%clk 0:00:12]}  Raxa2 {[%clk 0:00:25]} 32. Rxf7+ {[%clk 0:00:12]}  Ke8 {[%clk 0:00:24]} 33. Rg7 {[%clk 0:00:13]}  Nd5 {[%clk 0:00:24]} 34. Rd1 {[%clk 0:00:06]}  Rxg2+ {[%clk 0:00:19]} 35. Rxg2 {[%clk 0:00:06]}  Rxg2+ {[%clk 0:00:20]} 36. Kxg2 {[%clk 0:00:06]}  Ne3+ {[%clk 0:00:20]} 37. Kf3 {[%clk 0:00:07]}  Nxd1 {[%clk 0:00:21]} 38. Ng4 {[%clk 0:00:07]}  Kf7 {[%clk 0:00:20]} 39. h4 {[%clk 0:00:08]}  Nc3 {[%clk 0:00:16]} 40. h5 {[%clk 0:00:08]}  b4 {[%clk 0:00:17]} 41. h6 {[%clk 0:00:09]}  b3 {[%clk 0:00:16]} 42. h7 {[%clk 0:00:05]}  Kg7 {[%clk 0:00:17]} 43. Nxf6 {[%clk 0:00:05]}  b2 {[%clk 0:00:17]} 44. Nd7 {[%clk 0:00:04]}  b1=Q {[%clk 0:00:16]} 45. f6+ {[%clk 0:00:05]}  Kxh7 {[%clk 0:00:17]} 46. Nxe5 {[%clk 0:00:03]}  Qf5+ {[%clk 0:00:17]} 47. Ke3 {[%clk 0:00:03]}  Qxe5+ {[%clk 0:00:17]} 48. Kd2 {[%clk 0:00:04]}  Qxf6 {[%clk 0:00:18]} 49. Kc2 {[%clk 0:00:04]}  Nb5 {[%clk 0:00:18]} 50. Kb3 {[%clk 0:00:05]}  Qc3+ {[%clk 0:00:18]} 0-1


[Site "https://www.chess.com"]

[Event "Titled Tuesday Blitz November 14 Early 2023"]
[White "Bharath Subramaniyam H"]
[Black "Hua, Lefong"]
[WhiteFideId "46634827"]
[BlackFideId "2602253"]
[WhiteElo "2933"]
[BlackElo "2720"]
[Result "1-0"]
[Round "9"]
[TimeControl "180+1"]
[Date "2023.11.14"]
[WhiteClock "0:00:38"]
[BlackClock "0:00:17"]
[Board "19"]

1. e4 {[%clk 0:03:00]}  c5 {[%clk 0:02:59]} 2. Nf3 {[%clk 0:03:00]}  g6 {[%clk 0:03:00]} 3. c3 {[%clk 0:02:59]}  Nc6 {[%clk 0:03:00]} 4. d4 {[%clk 0:02:59]}  d5 {[%clk 0:03:00]} 5. exd5 {[%clk 0:02:54]}  Qxd5 {[%clk 0:03:01]} 6. Be3 {[%clk 0:02:54]}  cxd4 {[%clk 0:02:51]} 7. cxd4 {[%clk 0:02:55]}  Nf6 {[%clk 0:02:51]} 8. Nc3 {[%clk 0:02:55]}  Qd8 {[%clk 0:02:51]} 9. d5 {[%clk 0:02:55]}  Nb8 {[%clk 0:02:51]} 10. Bb5+ {[%clk 0:02:35]}  Bd7 {[%clk 0:02:49]} 11. d6 {[%clk 0:02:25]}  exd6 {[%clk 0:02:32]} 12. O-O {[%clk 0:02:24]}  Bxb5 {[%clk 0:02:12]} 13. Nxb5 {[%clk 0:02:23]}  a6 {[%clk 0:02:11]} 14. Re1 {[%clk 0:02:06]}  Be7 {[%clk 0:01:37]} 15. Nxd6+ {[%clk 0:01:31]}  Qxd6 {[%clk 0:01:25]} 16. Qxd6 {[%clk 0:01:31]}  Bxd6 {[%clk 0:01:26]} 17. Bd4+ {[%clk 0:01:30]}  Kd7 {[%clk 0:01:13]} 18. Bxf6 {[%clk 0:01:30]}  Re8 {[%clk 0:01:13]} 19. Rxe8 {[%clk 0:01:21]}  Kxe8 {[%clk 0:01:13]} 20. Re1+ {[%clk 0:01:09]}  Kd7 {[%clk 0:01:07]} 21. Ng5 {[%clk 0:01:07]}  Nc6 {[%clk 0:00:57]} 22. Nxf7 {[%clk 0:00:54]}  Bb4 {[%clk 0:00:36]} 23. Re2 {[%clk 0:00:38]}  Rf8 {[%clk 0:00:30]} 24. Ne5+ {[%clk 0:00:39]}  Nxe5 {[%clk 0:00:25]} 25. Bxe5 {[%clk 0:00:40]}  Re8 {[%clk 0:00:23]} 26. f4 {[%clk 0:00:39]}  g5 {[%clk 0:00:18]} 27. Kf2 {[%clk 0:00:36]}  gxf4 {[%clk 0:00:18]} 28. Bxf4 {[%clk 0:00:36]}  Bc5+ {[%clk 0:00:19]} 29. Kf3 {[%clk 0:00:36]}  Rf8 {[%clk 0:00:19]} 30. g3 {[%clk 0:00:34]}  Kc6 {[%clk 0:00:16]} 31. h4 {[%clk 0:00:34]}  Bd6 {[%clk 0:00:16]} 32. Re6 {[%clk 0:00:34]}  Kc5 {[%clk 0:00:15]} 33. Rxd6 {[%clk 0:00:34]}  Rxf4+ {[%clk 0:00:15]} 34. Kxf4 {[%clk 0:00:35]}  Kxd6 {[%clk 0:00:16]} 35. Kg5 {[%clk 0:00:35]}  Ke5 {[%clk 0:00:16]} 36. Kh6 {[%clk 0:00:36]}  Kf5 {[%clk 0:00:17]} 37. Kxh7 {[%clk 0:00:37]}  Kg4 {[%clk 0:00:17]} 38. Kg6 {[%clk 0:00:38]} 1-0


[Site "https://www.chess.com"]

[Event "Titled Tuesday Blitz November 14 Early 2023"]
[White "Dowgird, Filip"]
[Black "Henriquez Villagra, Cristobal"]
[WhiteFideId "1121235"]
[BlackFideId "3409350"]
[WhiteElo "2707"]
[BlackElo "2884"]
[Result "0-1"]
[Round "9"]
[TimeControl "180+1"]
[Date "2023.11.14"]
[WhiteClock "0:00:01"]
[BlackClock "0:00:04"]
[Board "20"]

1. d4 {[%clk 0:03:00]}  d6 {[%clk 0:02:57]} 2. Bg5 {[%clk 0:02:59]}  c6 {[%clk 0:02:54]} 3. c3 {[%clk 0:02:55]}  Nd7 {[%clk 0:02:39]} 4. Nd2 {[%clk 0:02:54]}  Ngf6 {[%clk 0:02:39]} 5. e3 {[%clk 0:02:38]}  Qc7 {[%clk 0:01:50]} 6. Ngf3 {[%clk 0:02:30]}  h6 {[%clk 0:01:44]} 7. Bh4 {[%clk 0:02:28]}  g5 {[%clk 0:01:40]} 8. Bg3 {[%clk 0:02:28]}  Nh5 {[%clk 0:01:41]} 9. Bc4 {[%clk 0:02:07]}  Nxg3 {[%clk 0:01:38]} 10. hxg3 {[%clk 0:02:07]}  d5 {[%clk 0:01:30]} 11. Bd3 {[%clk 0:02:07]}  Bg7 {[%clk 0:01:29]} 12. e4 {[%clk 0:02:01]}  e6 {[%clk 0:01:21]} 13. Qe2 {[%clk 0:01:57]}  Nb6 {[%clk 0:01:19]} 14. O-O-O {[%clk 0:01:54]}  Bd7 {[%clk 0:01:19]} 15. Kb1 {[%clk 0:01:42]}  O-O-O {[%clk 0:01:18]} 16. Nb3 {[%clk 0:01:39]}  Kb8 {[%clk 0:01:19]} 17. Rhe1 {[%clk 0:01:28]}  Bc8 {[%clk 0:01:19]} 18. e5 {[%clk 0:01:21]}  g4 {[%clk 0:01:13]} 19. Nh4 {[%clk 0:01:15]}  h5 {[%clk 0:01:13]} 20. f4 {[%clk 0:01:16]}  Bh6 {[%clk 0:01:05]} 21. f5 {[%clk 0:01:15]}  Bg5 {[%clk 0:01:00]} 22. fxe6 {[%clk 0:01:12]}  fxe6 {[%clk 0:01:01]} 23. Ng6 {[%clk 0:01:11]}  Rh6 {[%clk 0:00:58]} 24. Nc5 {[%clk 0:01:04]}  Qg7 {[%clk 0:00:53]} 25. Nf4 {[%clk 0:01:02]}  Re8 {[%clk 0:00:54]} 26. Rh1 {[%clk 0:00:59]}  Bxf4 {[%clk 0:00:50]} 27. gxf4 {[%clk 0:00:59]}  Nd7 {[%clk 0:00:50]} 28. Nxd7+ {[%clk 0:00:52]}  Bxd7 {[%clk 0:00:51]} 29. g3 {[%clk 0:00:52]}  Rf8 {[%clk 0:00:38]} 30. Rh4 {[%clk 0:00:51]}  Be8 {[%clk 0:00:39]} 31. Rdh1 {[%clk 0:00:49]}  Bg6 {[%clk 0:00:39]} 32. Qc2 {[%clk 0:00:48]}  Bxd3 {[%clk 0:00:39]} 33. Qxd3 {[%clk 0:00:48]}  Rf5 {[%clk 0:00:36]} 34. b4 {[%clk 0:00:46]}  a6 {[%clk 0:00:35]} 35. a4 {[%clk 0:00:45]}  Kc7 {[%clk 0:00:33]} 36. Kb2 {[%clk 0:00:41]}  Kd8 {[%clk 0:00:32]} 37. Kb3 {[%clk 0:00:38]}  Ke8 {[%clk 0:00:30]} 38. b5 {[%clk 0:00:29]}  axb5 {[%clk 0:00:16]} 39. axb5 {[%clk 0:00:29]}  Kf7 {[%clk 0:00:17]} 40. Ra1 {[%clk 0:00:24]}  Qf8 {[%clk 0:00:16]} 41. Ra7 {[%clk 0:00:23]}  Qb8 {[%clk 0:00:15]} 42. b6 {[%clk 0:00:23]}  Kg6 {[%clk 0:00:16]} 43. Qb1 {[%clk 0:00:20]}  Rh7 {[%clk 0:00:16]} 44. Qa2 {[%clk 0:00:19]}  Qd8 {[%clk 0:00:16]} 45. Qa5 {[%clk 0:00:18]}  Rxf4 {[%clk 0:00:17]} 46. Ra8 {[%clk 0:00:14]}  Qe7 {[%clk 0:00:13]} 47. Rg8+ {[%clk 0:00:11]}  Kf5 {[%clk 0:00:09]} 48. Qa8 {[%clk 0:00:09]}  Rf3 {[%clk 0:00:08]} 49. Rf8+ {[%clk 0:00:09]}  Ke4 {[%clk 0:00:08]} 50. Rxf3 {[%clk 0:00:05]}  Kxf3 {[%clk 0:00:08]} 51. Qg8 {[%clk 0:00:03]}  Qf7 {[%clk 0:00:07]} 52. Qg5 {[%clk 0:00:03]}  Qf5 {[%clk 0:00:05]} 53. Qd2 {[%clk 0:00:03]}  Qb1+ {[%clk 0:00:06]} 54. Ka4 {[%clk 0:00:03]}  Qb5+ {[%clk 0:00:04]} 55. Ka3 {[%clk 0:00:03]}  Qa6+ {[%clk 0:00:03]} 56. Kb2 {[%clk 0:00:04]}  Qe2 {[%clk 0:00:03]} 57. Qxe2+ {[%clk 0:00:03]}  Kxe2 {[%clk 0:00:04]} 58. Rxg4 {[%clk 0:00:01]}  hxg4 {[%clk 0:00:04]} 0-1


[Site "https://www.chess.com"]

[Event "Titled Tuesday Blitz November 14 Early 2023"]
[White "Beerdsen, Thomas"]
[Black "Ahmad, Khagan"]
[WhiteFideId "1030108"]
[BlackFideId "13431552"]
[WhiteElo "2858"]
[BlackElo "2632"]
[Result "1-0"]
[Round "9"]
[TimeControl "180+1"]
[Date "2023.11.14"]
[WhiteClock "0:00:29"]
[BlackClock "0:00:01"]
[Board "22"]

1. e4 {[%clk 0:03:00]}  c5 {[%clk 0:02:51]} 2. Nf3 {[%clk 0:03:00]}  d6 {[%clk 0:02:52]} 3. d4 {[%clk 0:03:01]}  cxd4 {[%clk 0:02:52]} 4. Nxd4 {[%clk 0:03:01]}  Nf6 {[%clk 0:02:53]} 5. Nc3 {[%clk 0:03:02]}  a6 {[%clk 0:02:54]} 6. a3 {[%clk 0:03:03]}  e5 {[%clk 0:02:50]} 7. Nf5 {[%clk 0:03:03]}  Bxf5 {[%clk 0:02:46]} 8. exf5 {[%clk 0:03:04]}  d5 {[%clk 0:02:46]} 9. Bg5 {[%clk 0:03:05]}  d4 {[%clk 0:02:38]} 10. Ne4 {[%clk 0:03:05]}  Be7 {[%clk 0:02:38]} 11. Bxf6 {[%clk 0:03:05]}  Bxf6 {[%clk 0:02:36]} 12. Bd3 {[%clk 0:03:06]}  Nc6 {[%clk 0:02:30]} 13. O-O {[%clk 0:03:06]}  Rc8 {[%clk 0:02:25]} 14. Qh5 {[%clk 0:03:02]}  O-O {[%clk 0:02:22]} 15. Kh1 {[%clk 0:02:54]}  Ne7 {[%clk 0:02:01]} 16. g4 {[%clk 0:02:53]}  Nd5 {[%clk 0:01:58]} 17. g5 {[%clk 0:02:51]}  g6 {[%clk 0:01:52]} 18. Qh4 {[%clk 0:02:36]}  Bh8 {[%clk 0:01:46]} 19. f6 {[%clk 0:02:36]}  Nf4 {[%clk 0:01:44]} 20. Rg1 {[%clk 0:02:31]}  Qd5 {[%clk 0:01:12]} 21. Rae1 {[%clk 0:02:19]}  Rc6 {[%clk 0:00:57]} 22. Qh6 {[%clk 0:02:06]}  Rfc8 {[%clk 0:00:47]} 23. Rg4 {[%clk 0:02:05]}  Rxc2 {[%clk 0:00:47]} 24. Rh4 {[%clk 0:01:52]}  Nh5 {[%clk 0:00:37]} 25. Kg2 {[%clk 0:01:05]}  Rd2 {[%clk 0:00:27]} 26. Bb1 {[%clk 0:01:05]}  Rxb2 {[%clk 0:00:22]} 27. Bd3 {[%clk 0:00:59]}  Rc3 {[%clk 0:00:18]} 28. Rd1 {[%clk 0:00:38]}  Qb3 {[%clk 0:00:13]} 29. Rxh5 {[%clk 0:00:36]}  gxh5 {[%clk 0:00:12]} 30. Nc5 {[%clk 0:00:27]}  Rxd3 {[%clk 0:00:07]} 31. Nxb3 {[%clk 0:00:26]}  Rxd1 {[%clk 0:00:07]} 32. Nc5 {[%clk 0:00:27]}  Rdd2 {[%clk 0:00:05]} 33. Kf3 {[%clk 0:00:27]}  Rxf2+ {[%clk 0:00:03]} 34. Ke4 {[%clk 0:00:28]}  Rbe2+ {[%clk 0:00:02]} 35. Kd5 {[%clk 0:00:28]}  e4 {[%clk 0:00:01]} 36. Nd7 {[%clk 0:00:29]}  Rf5+ {[%clk 0:00:01]} 37. Kd6 {[%clk 0:00:29]}  Bg7 {[%clk 0:00:01]} 38. Qxg7# {[%clk 0:00:29]} 1-0


[Site "https://www.chess.com"]

[Event "Titled Tuesday Blitz November 14 Early 2023"]
[White "Hristodoulou, Panagiotis"]
[Black "Idani, Pouya"]
[WhiteFideId "4214340"]
[BlackFideId "12510130"]
[WhiteElo "2660"]
[BlackElo "2833"]
[Result "0-1"]
[Round "9"]
[TimeControl "180+1"]
[Date "2023.11.14"]
[WhiteClock "0:00:00"]
[BlackClock "0:00:48"]
[Board "29"]

1. e4 {[%clk 0:02:55]}  c5 {[%clk 0:02:59]} 2. Nf3 {[%clk 0:02:55]}  d6 {[%clk 0:02:59]} 3. d4 {[%clk 0:02:55]}  cxd4 {[%clk 0:03:00]} 4. Nxd4 {[%clk 0:02:56]}  Nf6 {[%clk 0:03:01]} 5. Nc3 {[%clk 0:02:56]}  Nc6 {[%clk 0:03:01]} 6. Bg5 {[%clk 0:02:56]}  e6 {[%clk 0:03:01]} 7. Qd3 {[%clk 0:02:53]}  Bd7 {[%clk 0:02:59]} 8. O-O-O {[%clk 0:02:51]}  a6 {[%clk 0:02:58]} 9. Kb1 {[%clk 0:02:50]}  h6 {[%clk 0:02:42]} 10. Bh4 {[%clk 0:02:48]}  Ne5 {[%clk 0:02:39]} 11. Qd2 {[%clk 0:02:46]}  Nxe4 {[%clk 0:02:29]} 12. Nxe4 {[%clk 0:02:40]}  Qxh4 {[%clk 0:02:29]} 13. f4 {[%clk 0:02:39]}  Nc6 {[%clk 0:02:00]} 14. Nxc6 {[%clk 0:02:37]}  Bxc6 {[%clk 0:02:01]} 15. Nxd6+ {[%clk 0:02:34]}  Bxd6 {[%clk 0:02:02]} 16. Qxd6 {[%clk 0:02:34]}  Rd8 {[%clk 0:01:59]} 17. Qxd8+ {[%clk 0:02:33]}  Qxd8 {[%clk 0:02:00]} 18. Rxd8+ {[%clk 0:02:34]}  Kxd8 {[%clk 0:02:01]} 19. Rg1 {[%clk 0:02:21]}  g5 {[%clk 0:02:01]} 20. g3 {[%clk 0:01:43]}  Ke7 {[%clk 0:02:00]} 21. Kc1 {[%clk 0:01:35]}  Rd8 {[%clk 0:01:53]} 22. c3 {[%clk 0:01:32]}  gxf4 {[%clk 0:01:46]} 23. gxf4 {[%clk 0:01:31]}  Bf3 {[%clk 0:01:41]} 24. Bc4 {[%clk 0:00:37]}  Kf6 {[%clk 0:01:40]} 25. Bb3 {[%clk 0:00:29]}  Kf5 {[%clk 0:01:29]} 26. Rg7 {[%clk 0:00:28]}  Rf8 {[%clk 0:01:29]} 27. Rh7 {[%clk 0:00:26]}  h5 {[%clk 0:01:20]} 28. Rh6 {[%clk 0:00:20]}  f6 {[%clk 0:01:08]} 29. Rh7 {[%clk 0:00:17]}  Rd8 {[%clk 0:01:01]} 30. Re7 {[%clk 0:00:12]}  Rd6 {[%clk 0:01:00]} 31. Rf7 {[%clk 0:00:12]}  e5 {[%clk 0:00:52]} 32. fxe5 {[%clk 0:00:11]}  Kxe5 {[%clk 0:00:53]} 33. Re7+ {[%clk 0:00:10]}  Kf4 {[%clk 0:00:52]} 34. Re6 {[%clk 0:00:04]}  Rxe6 {[%clk 0:00:52]} 35. Bxe6 {[%clk 0:00:05]}  Ke3 {[%clk 0:00:53]} 36. c4 {[%clk 0:00:03]}  Be4 {[%clk 0:00:52]} 37. Bd5 {[%clk 0:00:01]}  f5 {[%clk 0:00:47]} 38. Bxe4 {[%clk 0:00:02]}  fxe4 {[%clk 0:00:47]} 39. Kd1 {[%clk 0:00:00]}  Kf2 {[%clk 0:00:48]} 0-1


[Site "https://www.chess.com"]

[Event "Titled Tuesday Blitz November 14 Early 2023"]
[White "Sousa, Andre Ventura"]
[Black "Samsonkin, Artiom"]
[WhiteFideId "1917617"]
[BlackFideId "13503111"]
[WhiteElo "2643"]
[BlackElo "2822"]
[Result "0-1"]
[Round "9"]
[TimeControl "180+1"]
[Date "2023.11.14"]
[WhiteClock "0:00:22"]
[BlackClock "0:00:22"]
[Board "30"]

1. e4 {[%clk 0:03:00]}  c5 {[%clk 0:02:42]} 2. Nf3 {[%clk 0:03:00]}  d6 {[%clk 0:02:42]} 3. d4 {[%clk 0:03:01]}  cxd4 {[%clk 0:02:43]} 4. Nxd4 {[%clk 0:03:01]}  Nf6 {[%clk 0:02:44]} 5. Nc3 {[%clk 0:03:02]}  a6 {[%clk 0:02:44]} 6. h3 {[%clk 0:03:02]}  e5 {[%clk 0:02:43]} 7. Nf3 {[%clk 0:03:03]}  Be7 {[%clk 0:02:43]} 8. g4 {[%clk 0:03:03]}  O-O {[%clk 0:02:43]} 9. g5 {[%clk 0:03:02]}  Nh5 {[%clk 0:02:07]} 10. h4 {[%clk 0:03:02]}  Kh8 {[%clk 0:02:03]} 11. Be3 {[%clk 0:03:02]}  f5 {[%clk 0:01:51]} 12. gxf6 {[%clk 0:02:56]}  Nxf6 {[%clk 0:01:48]} 13. Ng5 {[%clk 0:02:53]}  Nc6 {[%clk 0:01:22]} 14. Bc4 {[%clk 0:02:46]}  Ng4 {[%clk 0:01:07]} 15. Nd5 {[%clk 0:02:25]}  Nd4 {[%clk 0:00:53]} 16. Bxd4 {[%clk 0:02:19]}  exd4 {[%clk 0:00:53]} 17. Qxd4 {[%clk 0:02:18]}  Bxg5 {[%clk 0:00:48]} 18. hxg5 {[%clk 0:02:15]}  Qxg5 {[%clk 0:00:48]} 19. f4 {[%clk 0:02:09]}  Rxf4 {[%clk 0:00:39]} 20. Nxf4 {[%clk 0:01:46]}  Qxf4 {[%clk 0:00:39]} 21. Ke2 {[%clk 0:01:37]}  Ne5 {[%clk 0:00:29]} 22. Rag1 {[%clk 0:00:33]}  Bg4+ {[%clk 0:00:27]} 23. Rxg4 {[%clk 0:00:34]}  Qxg4+ {[%clk 0:00:25]} 24. Ke3 {[%clk 0:00:28]}  Qf3+ {[%clk 0:00:23]} 25. Kd2 {[%clk 0:00:29]}  Qxh1 {[%clk 0:00:24]} 26. Bd5 {[%clk 0:00:22]}  Nf3+ {[%clk 0:00:22]} 0-1


[Site "https://www.chess.com"]

[Event "Titled Tuesday Blitz November 14 Early 2023"]
[White "Vakhlamov, Igor L."]
[Black "Stark, Lars"]
[WhiteFideId "24126748"]
[BlackFideId "4676386"]
[WhiteElo "2810"]
[BlackElo "2636"]
[Result "1-0"]
[Round "9"]
[TimeControl "180+1"]
[Date "2023.11.14"]
[WhiteClock "0:01:07"]
[BlackClock "0:00:47"]
[Board "31"]

1. e4 {[%clk 0:03:00]}  e6 {[%clk 0:02:58]} 2. d4 {[%clk 0:03:00]}  d5 {[%clk 0:02:57]} 3. Nc3 {[%clk 0:03:00]}  Nf6 {[%clk 0:02:53]} 4. Bd3 {[%clk 0:03:00]}  dxe4 {[%clk 0:02:45]} 5. Nxe4 {[%clk 0:03:01]}  Nbd7 {[%clk 0:02:22]} 6. Nf3 {[%clk 0:02:59]}  Be7 {[%clk 0:02:07]} 7. Be3 {[%clk 0:02:54]}  O-O {[%clk 0:02:04]} 8. Qe2 {[%clk 0:02:53]}  Nxe4 {[%clk 0:01:53]} 9. Bxe4 {[%clk 0:02:54]}  c5 {[%clk 0:01:54]} 10. O-O-O {[%clk 0:02:53]}  Qa5 {[%clk 0:01:46]} 11. Kb1 {[%clk 0:02:52]}  Nf6 {[%clk 0:01:45]} 12. Bd3 {[%clk 0:02:51]}  Rd8 {[%clk 0:01:43]} 13. dxc5 {[%clk 0:02:47]}  Bd7 {[%clk 0:01:38]} 14. Ne5 {[%clk 0:02:34]}  Bxc5 {[%clk 0:01:35]} 15. Bg5 {[%clk 0:02:22]}  Be8 {[%clk 0:01:17]} 16. Bxf6 {[%clk 0:02:11]}  gxf6 {[%clk 0:01:16]} 17. Qg4+ {[%clk 0:02:04]}  Kf8 {[%clk 0:01:16]} 18. Nc4 {[%clk 0:01:41]}  Qc7 {[%clk 0:01:16]} 19. Bxh7 {[%clk 0:01:38]}  b5 {[%clk 0:01:15]} 20. Ne3 {[%clk 0:01:33]}  Rac8 {[%clk 0:01:14]} 21. Qg8+ {[%clk 0:01:26]}  Ke7 {[%clk 0:01:14]} 22. Nf5+ {[%clk 0:01:27]}  exf5 {[%clk 0:01:08]} 23. Rhe1+ {[%clk 0:01:26]}  Qe5 {[%clk 0:01:07]} 24. Rxe5+ {[%clk 0:01:24]}  fxe5 {[%clk 0:01:08]} 25. Re1 {[%clk 0:01:21]}  Bxf2 {[%clk 0:00:58]} 26. Rxe5+ {[%clk 0:01:17]}  Kf6 {[%clk 0:00:58]} 27. Rxf5+ {[%clk 0:01:16]}  Ke7 {[%clk 0:00:56]} 28. Qg5+ {[%clk 0:01:11]}  Kd6 {[%clk 0:00:54]} 29. Rxf2 {[%clk 0:01:10]}  Kc7 {[%clk 0:00:55]} 30. Bd3 {[%clk 0:01:09]}  Bc6 {[%clk 0:00:54]} 31. h4 {[%clk 0:01:08]}  Rd6 {[%clk 0:00:54]} 32. Rxf7+ {[%clk 0:01:07]}  Kb6 {[%clk 0:00:47]} 33. Qe3+ {[%clk 0:01:07]} 1-0


[Site "https://www.chess.com"]

[Event "Titled Tuesday Blitz November 14 Early 2023"]
[White "YouShallNotPass001"]
[Black "Sattarov, Bobir"]
[BlackFideId "14203081"]
[WhiteElo "2466"]
[BlackElo "2754"]
[Result "1-0"]
[Round "9"]
[TimeControl "180+1"]
[Date "2023.11.14"]
[WhiteClock "0:01:27"]
[BlackClock "0:00:00"]
[Board "35"]

1. Nf3 {[%clk 0:03:00]}  d5 {[%clk 0:02:53]} 2. e3 {[%clk 0:03:01]}  c6 {[%clk 0:02:53]} 3. Be2 {[%clk 0:03:02]}  Bg4 {[%clk 0:02:52]} 4. O-O {[%clk 0:03:03]}  Nd7 {[%clk 0:02:53]} 5. d4 {[%clk 0:03:04]}  Ngf6 {[%clk 0:02:53]} 6. c4 {[%clk 0:03:04]}  e6 {[%clk 0:02:53]} 7. Nc3 {[%clk 0:03:05]}  Bd6 {[%clk 0:02:52]} 8. b4 {[%clk 0:03:05]}  Bxb4 {[%clk 0:02:49]} 9. Qb3 {[%clk 0:03:05]}  Bxc3 {[%clk 0:02:46]} 10. Qxc3 {[%clk 0:03:05]}  O-O {[%clk 0:02:44]} 11. Ba3 {[%clk 0:03:04]}  Re8 {[%clk 0:02:44]} 12. Rab1 {[%clk 0:03:04]}  Qc7 {[%clk 0:02:30]} 13. Qb3 {[%clk 0:02:59]}  Rab8 {[%clk 0:02:20]} 14. Rfc1 {[%clk 0:02:58]}  Nb6 {[%clk 0:02:08]} 15. cxd5 {[%clk 0:02:52]}  exd5 {[%clk 0:01:56]} 16. h3 {[%clk 0:02:50]}  Bxf3 {[%clk 0:01:53]} 17. Bxf3 {[%clk 0:02:50]}  Nc4 {[%clk 0:01:52]} 18. Bb4 {[%clk 0:02:48]}  b5 {[%clk 0:01:49]} 19. a4 {[%clk 0:02:45]}  a5 {[%clk 0:01:42]} 20. Be1 {[%clk 0:02:44]}  b4 {[%clk 0:01:41]} 21. Be2 {[%clk 0:02:40]}  Na3 {[%clk 0:01:31]} 22. Rb2 {[%clk 0:02:38]}  Re6 {[%clk 0:01:20]} 23. Rc5 {[%clk 0:02:32]}  Ne4 {[%clk 0:01:17]} 24. Rc1 {[%clk 0:02:30]}  Rbe8 {[%clk 0:01:15]} 25. Qxd5 {[%clk 0:02:29]}  Nc3 {[%clk 0:01:09]} 26. Qb3 {[%clk 0:02:18]}  Nxe2+ {[%clk 0:00:44]} 27. Rxe2 {[%clk 0:02:19]}  Qa7 {[%clk 0:00:30]} 28. Bxb4 {[%clk 0:02:13]}  axb4 {[%clk 0:00:18]} 29. Qxb4 {[%clk 0:02:14]}  Qa6 {[%clk 0:00:15]} 30. Rb2 {[%clk 0:01:52]}  Qd3 {[%clk 0:00:11]} 31. Qc3 {[%clk 0:01:44]}  Qe4 {[%clk 0:00:06]} 32. Qxa3 {[%clk 0:01:38]}  Rg6 {[%clk 0:00:06]} 33. g3 {[%clk 0:01:37]}  h5 {[%clk 0:00:06]} 34. Qc5 {[%clk 0:01:33]}  h4 {[%clk 0:00:05]} 35. Qxc6 {[%clk 0:01:33]}  Qf5 {[%clk 0:00:03]} 36. Qxe8+ {[%clk 0:01:32]}  Kh7 {[%clk 0:00:00]} 37. Rb5 {[%clk 0:01:27]} 1-0


[Site "https://www.chess.com"]